fUST/lending_fUST_20241003
["ID","MTS","AMOUNT","RATE_DAILY","PERIOD"]
[339709571,1727886654783,-500.0,0.00013699,2]
[339709572,1727886654792,-500.0,0.00013699,2]
[339709573,1727886654801,-151.0,0.00013699,2]
[339709574,1727886654812,-151.0,0.00013699,2]
[339709575,1727886654821,-151.0,0.00013699,2]
[339709576,1727886654830,-151.0,0.00013699,2]
[339709577,1727886654840,-151.0,0.00013699,2]
[339709578,1727886654849,-151.0,0.00013699,2]
[339709579,1727886654858,-156.157623,0.00013699,2]
[339709580,1727886654867,-5443.089466,0.00013699,2]
[339709581,1727886654877,-1589.107255,0.00013699,2]
[339709582,1727886654887,-166.913681,0.00013699,2]
[339709583,1727886654896,-1077.8590213,0.00013699,2]
[339709584,1727886654911,-151.0,0.00013699,2]
[339709585,1727886654920,-151.0,0.00013699,2]
[339709586,1727886654929,-151.0,0.00013699,2]
[339709587,1727886654938,-151.0,0.00013699,2]
[339709588,1727886654947,-155.893224,0.00013699,2]
[339709589,1727886654957,-1000.0,0.00013699,2]
[339709590,1727886654966,-1000.0,0.00013699,2]
[339709591,1727886654976,-1000.0,0.00013699,2]
[339709592,1727886654985,-1000.0,0.00013699,2]
[339709593,1727886654994,-1000.0,0.00013699,2]
[339709594,1727886655003,-1000.0,0.00013699,2]
[339709595,1727886655012,-1000.0,0.00013699,2]
[339709596,1727886655021,-1000.0,0.00013699,2]
[339709597,1727886655030,-1000.0,0.00013699,2]
[339709598,1727886655039,-1000.0,0.00013699,2]
[339709599,1727886655049,-1000.0,0.00013699,2]
[339709600,1727886655058,-1000.0,0.00013699,2]
[339709601,1727886655067,-1000.0,0.00013699,2]
[339709602,1727886655077,-1000.0,0.00013699,2]
[339709603,1727886655086,-1000.0,0.00013699,2]
[339709604,1727886655095,-1000.0,0.00013699,2]
[339709605,1727886655104,-1000.0,0.00013699,2]
[339709606,1727886655114,-1000.0,0.00013699,2]
[339709607,1727886655123,-1000.0,0.00013699,2]
[339709608,1727886655131,-1000.0,0.00013699,2]
[339709609,1727886655140,-1000.0,0.00013699,2]
[339709610,1727886655151,-1000.0,0.00013699,2]
[339709611,1727886655160,-1000.0,0.00013699,2]
[339709612,1727886655170,-1000.0,0.00013699,2]
[339709613,1727886655179,-1000.0,0.00013699,2]
[339709614,1727886655188,-1000.0,0.00013699,2]
[339709615,1727886655197,-1000.0,0.00013699,2]
[339709616,1727886655206,-1000.0,0.00013699,2]
[339709617,1727886655215,-1000.0,0.00013699,2]
[339709618,1727886655224,-1000.0,0.00013699,2]
[339709619,1727886655233,-1000.0,0.00013699,2]
[339709620,1727886655242,-1000.0,0.00013699,2]
[339709621,1727886655251,-1000.0,0.00013699,2]
[339709622,1727886655260,-1000.0,0.00013699,2]
[339709623,1727886655269,-1000.0,0.00013699,2]
[339709624,1727886655278,-1000.0,0.00013699,2]
[339709625,1727886655287,-1000.0,0.00013699,2]
[339709626,1727886655296,-1000.0,0.00013699,2]
[339709627,1727886655305,-1000.0,0.00013699,2]
[339709628,1727886655315,-1000.0,0.00013699,2]
[339709629,1727886655324,-160.0,0.00013699,2]
[339709630,1727886655333,-160.0,0.00013699,2]
[339709631,1727886655343,-161.15987518,0.00013699,2]
[339709632,1727886655352,-150.112233,0.000137,2]
[339709633,1727886655362,-150.112233,0.000137,2]
[339709634,1727886655372,-150.112233,0.000137,2]
[339709635,1727886655382,-150.112233,0.000137,2]
[339709636,1727886655391,-150.112235,0.000137,2]
[339709637,1727886655403,-150.112233,0.000137,2]
[339709638,1727886655412,-150.112233,0.000137,2]
[339709639,1727886655421,-150.112233,0.000137,2]
[339709640,1727886655431,-150.112233,0.000137,2]
[339709641,1727886655441,-150.112233,0.000137,2]
[339709642,1727886655451,-150.112233,0.000137,2]
[339709643,1727886655460,-168.942621,0.000137,2]
[339709644,1727886655470,-150.112233,0.000137,2]
[339709645,1727886655480,-150.112233,0.000137,2]
[339709646,1727886655490,-150.112233,0.000137,2]
[339709647,1727886655499,-150.112234,0.000137,2]
[339709648,1727886655509,-500.0,0.00013725,2]
[339709649,1727886655518,-203.60634357,0.00013725,2]
[339709650,1727886655527,-500.0,0.00013753,2]
[339709651,1727886655538,-831.03463921,0.00013765,2]
[339709652,1727886655548,-525.968,0.00013779,2]
[339709653,1727886655557,-150.608,0.00013779,2]
[339709654,1727886655566,-1219.978,0.00013779,2]
[339709655,1727886655575,-500.0,0.0001378,2]
[339709656,1727886655585,-150.112233,0.000138,2]
[339709657,1727886655595,-150.112233,0.000138,2]
[339709658,1727886655604,-150.112233,0.000138,2]
[339709659,1727886655613,-150.112233,0.000138,2]
[339709660,1727886655622,-165.763525,0.000138,2]
[339709661,1727886655631,-500.0,0.00013808,2]
[339709662,1727886655641,-850.55244638,0.0001381,2]
[339709663,1727886655652,-1000.0,0.0001381,2]
[339709664,1727886655662,-1000.0,0.0001381,2]
[339709665,1727886655671,-1000.0,0.0001381,2]
[339709666,1727886655680,-1000.0,0.0001381,2]
[339709667,1727886655689,-1000.0,0.0001381,2]
[339709668,1727886655699,-500.0,0.00013835,2]
[339709669,1727886655708,-556.32837736,0.00013862,2]
[339709670,1727886655717,-150.112233,0.000139,2]
[339709671,1727886655727,-150.112233,0.000139,2]
[339709672,1727886655737,-150.112233,0.000139,2]
[339709673,1727886655750,-150.112233,0.000139,2]
[339709674,1727886655760,-150.112233,0.000139,2]
[339709675,1727886655770,-150.112233,0.000139,2]
[339709676,1727886655780,-150.112233,0.000139,2]
[339709677,1727886655790,-150.112233,0.000139,2]
[339709678,1727886655799,-154.0,0.000139,2]
[339709679,1727886655809,-1500.0,0.00013947,2]
[339709680,1727886655820,-1500.0,0.00013947,2]
[339709681,1727886655829,-1500.0,0.00013947,2]
[339709682,1727886655839,-868.7089806,0.00013947,2]
[339709683,1727886655848,-1500.0,0.00013947,2]
[339709684,1727886655857,-310.14949546,0.00013971,2]
[339709685,1727886655867,-874.76,0.00013972,2]
[339709686,1727886655877,-500.0,0.00013972,2]
[339709687,1727886655887,-500.0,0.00013972,2]
[339709688,1727886655897,-751.2,0.00013972,2]
[339709689,1727886655908,-500.0,0.00013972,2]
[339709690,1727886655918,-500.0,0.00013972,2]
[339709691,1727886655927,-500.0,0.00013972,2]
[339709692,1727886655937,-832.93,0.00013972,2]
[339709693,1727886655947,-516.53873763,0.00013972,2]
[339709694,1727886655957,-500.0,0.00013972,2]
[339709695,1727886655967,-500.0,0.00013972,2]
[339709696,1727886655976,-500.0,0.00013972,2]
[339709697,1727886655986,-594.74,0.00013972,2]
[339709698,1727886655995,-500.0,0.00013972,2]
[339709699,1727886656006,-500.0,0.00013972,2]
[339709700,1727886656015,-500.0,0.00013972,2]
[339709701,1727886656025,-500.0,0.00013972,2]
[339709702,1727886656035,-500.0,0.00013972,2]
[339709703,1727886656045,-500.0,0.00013972,2]
[339709704,1727886656056,-500.0,0.00013972,2]
[339709705,1727886656066,-500.0,0.00013972,2]
[339709706,1727886656076,-639.99985833,0.00013972,2]
[339709707,1727886656086,-500.0,0.00013972,2]
[339709708,1727886656095,-791.49,0.00013972,2]
[339709709,1727886656106,-500.0,0.00013972,2]
[339709710,1727886656116,-500.0,0.00013972,2]
[339709711,1727886656126,-500.0,0.00013972,2]
[339709712,1727886656136,-500.0,0.00013972,2]
[339709713,1727886656146,-500.0,0.00013972,2]
[339709714,1727886656156,-500.0,0.00013972,2]
[339709715,1727886656167,-500.0,0.00013972,2]
[339709716,1727886656177,-500.0,0.00013972,2]
[339709717,1727886656187,-500.0,0.00013972,2]
[339709718,1727886656196,-500.0,0.00013972,2]
[339709719,1727886656206,-500.0,0.00013972,2]
[339709720,1727886656216,-500.0,0.00013972,2]
[339709721,1727886656225,-500.0,0.00013972,2]
[339709722,1727886656234,-500.0,0.00013972,2]
[339709723,1727886656244,-517.21119377,0.00013972,2]
[339709724,1727886656253,-615.64,0.00013972,2]
[339709725,1727886656263,-637.0,0.00013972,2]
[339709726,1727886656272,-500.0,0.00013972,2]
[339709727,1727886656282,-545.96,0.00013972,2]
[339709728,1727886656291,-525.16,0.00013972,2]
[339709729,1727886656301,-500.0,0.00013972,2]
[339709730,1727886656310,-500.0,0.00013972,2]
[339709731,1727886656320,-513.97,0.00013972,2]
[339709732,1727886656329,-500.0,0.00013972,2]
[339709733,1727886656339,-500.0,0.00013972,2]
[339709734,1727886656348,-500.0,0.00013972,2]
[339709735,1727886656358,-634.5,0.00013972,2]
[339709736,1727886656367,-500.0,0.00013972,2]
[339709737,1727886656377,-500.0,0.00013972,2]
[339709738,1727886656387,-500.0,0.00013972,2]
[339709739,1727886656397,-500.0,0.00013972,2]
[339709740,1727886656407,-828.21,0.00013972,2]
[339709741,1727886656416,-903.59,0.00013972,2]
[339709742,1727886656425,-500.0,0.00013972,2]
[339709743,1727886656435,-734.22,0.00013972,2]
[339709744,1727886656445,-500.0,0.00013972,2]
[339709745,1727886656578,-515.3,0.00013972,2]
[339709746,1727886656589,-500.0,0.00013972,2]
[339709747,1727886656598,-500.0,0.00013972,2]
[339709748,1727886656608,-739.07,0.00013972,2]
[339709749,1727886656617,-500.0,0.00013972,2]
[339709750,1727886656626,-500.0,0.00013972,2]
[339709751,1727886656635,-500.0,0.00013972,2]
[339709752,1727886656645,-500.0,0.00013972,2]
[339709753,1727886656656,-500.0,0.00013972,2]
[339709754,1727886656665,-500.0,0.00013972,2]
[339709755,1727886656675,-500.0,0.00013972,2]
[339709756,1727886656684,-593.93,0.00013972,2]
[339709757,1727886656693,-500.0,0.00013972,2]
[339709758,1727886656703,-500.0,0.00013972,2]
[339709759,1727886656712,-500.0,0.00013972,2]
[339709760,1727886656722,-500.0,0.00013972,2]
[339709761,1727886656731,-500.0,0.00013972,2]
[339709762,1727886656744,-500.0,0.00013972,2]
[339709763,1727886656753,-500.0,0.00013972,2]
[339709764,1727886656762,-500.0,0.00013972,2]
[339709765,1727886656772,-783.68,0.00013972,2]
[339709766,1727886656782,-500.0,0.00013972,2]
[339709767,1727886656792,-500.0,0.00013972,2]
[339709768,1727886656801,-500.0,0.00013972,2]
[339709769,1727886656810,-500.0,0.00013972,2]
[339709770,1727886656822,-500.0,0.00013972,2]
[339709771,1727886656831,-500.0,0.00013972,2]
[339709772,1727886656841,-1000.0,0.00013972,2]
[339709773,1727886656850,-885.1,0.00013972,2]
[339709774,1727886656859,-500.0,0.00013972,2]
[339709775,1727886656869,-500.0,0.00013972,2]
[339709776,1727886656879,-582.85,0.00013972,2]
[339709777,1727886656889,-500.0,0.00013972,2]
[339709778,1727886656898,-500.0,0.00013972,2]
[339709779,1727886656909,-835.55,0.00013972,2]
[339709780,1727886656918,-500.0,0.00013972,2]
[339709781,1727886656928,-500.0,0.00013972,2]
[339709782,1727886656937,-500.0,0.00013972,2]
[339709783,1727886656946,-500.0,0.00013972,2]
[339709784,1727886656956,-500.0,0.00013972,2]
[339709785,1727886656965,-838.04,0.00013972,2]
[339709786,1727886656974,-500.0,0.00013972,2]
[339709787,1727886656983,-500.0,0.00013972,2]
[339709788,1727886656992,-500.0,0.00013972,2]
[339709789,1727886657002,-500.0,0.00013972,2]
[339709790,1727886657011,-500.0,0.00013972,2]
[339709791,1727886657020,-500.0,0.00013972,2]
[339709792,1727886657029,-638.34,0.00013972,2]
[339709793,1727886657038,-895.79,0.00013972,2]
[339709794,1727886657047,-889.95,0.00013972,2]
[339709795,1727886657057,-600.49,0.00013972,2]
[339709796,1727886657066,-500.0,0.00013972,2]
[339709797,1727886657076,-500.0,0.00013972,2]
[339709798,1727886657086,-500.0,0.00013972,2]
[339709799,1727886657096,-500.0,0.00013972,2]
[339709800,1727886657105,-1146.76,0.00013972,2]
[339709801,1727886657115,-500.0,0.00013972,2]
[339709802,1727886657124,-500.0,0.00013972,2]
[339709803,1727886657133,-749.15,0.00013972,2]
[339709804,1727886657143,-500.0,0.00013972,2]
[339709805,1727886657152,-500.0,0.00013972,2]
[339709806,1727886657162,-500.0,0.00013972,2]
[339709807,1727886657171,-500.0,0.00013972,2]
[339709808,1727886657181,-500.0,0.00013972,2]
[339709809,1727886657190,-500.0,0.00013972,2]
[339709810,1727886657199,-500.0,0.00013972,2]
[339709811,1727886657208,-806.79,0.00013972,2]
[339709812,1727886657217,-500.0,0.00013972,2]
[339709813,1727886657227,-500.0,0.00013972,2]
[339709814,1727886657236,-500.0,0.00013972,2]
[339709815,1727886657245,-500.0,0.00013972,2]
[339709816,1727886657254,-500.0,0.00013972,2]
[339709817,1727886657263,-748.93,0.00013972,2]
[339709818,1727886657272,-500.0,0.00013972,2]
[339709819,1727886657282,-504.03944099,0.00013972,2]
[339709820,1727886657291,-500.0,0.00013972,2]
[339709821,1727886657300,-500.0,0.00013972,2]
[339709822,1727886657310,-500.0,0.00013972,2]
[339709823,1727886657319,-606.89,0.00013972,2]
[339709824,1727886657328,-568.98,0.00013972,2]
[339709825,1727886657337,-500.0,0.00013972,2]
[339709826,1727886657347,-500.0,0.00013972,2]
[339709827,1727886657356,-500.0,0.00013972,2]
[339709828,1727886657365,-500.0,0.00013972,2]
[339709829,1727886657375,-500.0,0.00013972,2]
[339709830,1727886657384,-868.94,0.00013972,2]
[339709831,1727886657394,-530.69651116,0.00013972,2]
[339709832,1727886657405,-500.0,0.00013972,2]
[339709833,1727886657414,-500.0,0.00013972,2]
[339709834,1727886657423,-500.0,0.00013972,2]
[339709835,1727886657432,-500.0,0.00013972,2]
[339709836,1727886657441,-500.0,0.00013972,2]
[339709837,1727886657451,-500.0,0.00013972,2]
[339709838,1727886657461,-549.99,0.00013972,2]
[339709839,1727886657470,-500.0,0.00013972,2]
[339709840,1727886657479,-500.0,0.00013972,2]
[339709841,1727886657488,-500.0,0.00013972,2]
[339709842,1727886657497,-607.86,0.00013972,2]
[339709843,1727886657507,-500.0,0.00013972,2]
[339709844,1727886657516,-500.0,0.00013972,2]
[339709845,1727886657525,-500.0,0.00013972,2]
[339709846,1727886657534,-500.0,0.00013972,2]
[339709847,1727886657543,-500.0,0.00013972,2]
[339709848,1727886657553,-500.0,0.00013972,2]
[339709849,1727886657562,-1427.82,0.00013972,2]
[339709850,1727886657571,-500.0,0.00013972,2]
[339709851,1727886657580,-500.0,0.00013972,2]
[339709852,1727886657589,-500.0,0.00013972,2]
[339709853,1727886657598,-500.0,0.00013972,2]
[339709854,1727886657608,-500.0,0.00013972,2]
[339709855,1727886657617,-594.62,0.00013972,2]
[339709856,1727886657626,-500.0,0.00013972,2]
[339709857,1727886657636,-500.0,0.00013972,2]
[339709858,1727886657645,-500.0,0.00013972,2]
[339709859,1727886657654,-1054.01,0.00013972,2]
[339709860,1727886657663,-500.0,0.00013972,2]
[339709861,1727886657672,-500.0,0.00013972,2]
[339709862,1727886657681,-500.0,0.00013972,2]
[339709863,1727886657690,-500.0,0.00013972,2]
[339709864,1727886657699,-500.0,0.00013972,2]
[339709865,1727886657708,-500.0,0.00013972,2]
[339709866,1727886657717,-1454.86,0.00013972,2]
[339709867,1727886657727,-500.0,0.00013972,2]
[339709868,1727886657737,-500.0,0.00013972,2]
[339709869,1727886657748,-500.0,0.00013972,2]
[339709870,1727886657757,-968.35,0.00013972,2]
[339709871,1727886657766,-529.32,0.00013972,2]
[339709872,1727886657775,-282.09763618,0.00013972,2]
[339709873,1727886658119,-213.04236382,0.00013972,2]
[339709874,1727886658128,-322.50458758,0.00013972,2]
[339709875,1727886658140,-387.98541242,0.00013972,2]
[339709876,1727886658284,-386.23669357,0.00013972,2]
[339709877,1727886658723,-500.0,0.00013698,2]
[339709878,1727886658733,-500.0,0.00013698,2]
[339709879,1727886658743,-243.5467963,0.00013698,2]
[339709880,1727886658759,-256.4532037,0.00013698,2]
[339709881,1727886658769,-500.0,0.00013698,2]
[339709882,1727886658778,-500.0,0.00013698,2]
[339709883,1727886658787,-500.0,0.00013698,2]
[339709884,1727886658796,-500.0,0.00013698,2]
[339709885,1727886658806,-6.78576943,0.00013698,2]
[339709886,1727886658818,-493.21423057,0.00013698,2]
[339709887,1727886658830,-113.76330643,0.00013972,2]
[339709888,1727886658840,-500.0,0.00013972,2]
[339709889,1727886658849,-500.0,0.00013972,2]
[339709890,1727886658858,-500.0,0.00013972,2]
[339709891,1727886658867,-615.79,0.00013972,2]
[339709892,1727886658877,-500.0,0.00013972,2]
[339709893,1727886658886,-2072.592463,0.00013972,2]
[339709894,1727886659134,-242.807537,0.00013972,2]
[339709895,1727886659144,-500.0,0.00013972,2]
[339709896,1727886659157,-500.0,0.00013972,2]
[339709897,1727886659167,-500.0,0.00013972,2]
[339709898,1727886659177,-500.0,0.00013972,2]
[339709899,1727886659186,-500.0,0.00013972,2]
[339709900,1727886659196,-500.0,0.00013972,2]
[339709901,1727886659205,-110.73414545,0.00013972,2]
[339709902,1727886659218,-291.2784889,0.00013972,2]
[339709903,1727886659239,-471.12000005,0.00013698,2]
[339709904,1727886659251,-133.14498831,0.00013698,2]
[339709905,1727886659262,-97.98736565,0.00013972,2]
[339709906,1727886659271,-500.0,0.00013972,2]
[339709907,1727886659280,-500.0,0.00013972,2]
[339709908,1727886659290,-500.0,0.00013972,2]
[339709909,1727886659299,-77.64084843,0.00013972,2]
[339709910,1727886659701,-500.0,0.00013698,2]
[339709911,1727886659711,-422.35915157,0.00013972,2]
[339709912,1727886659722,-1040.09,0.00013972,2]
[339709913,1727886659732,-500.0,0.00013972,2]
[339709914,1727886659745,-500.0,0.00013972,2]
[339709915,1727886659755,-514.53930188,0.00013972,2]
[339709916,1727886659764,-500.0,0.00013972,2]
[339709917,1727886659773,-500.0,0.00013972,2]
[339709918,1727886659783,-578.7,0.00013972,2]
[339709919,1727886659793,-500.0,0.00013972,2]
[339709920,1727886659803,-444.31154655,0.00013972,2]
[339709921,1727886659906,-55.68845345,0.00013972,2]
[339709922,1727886659915,-63.52318793,0.00013972,2]
[339709923,1727886659932,-151.0,0.00013698,2]
[339709924,1727886659943,-436.47681207,0.00013972,2]
[339709925,1727886659952,-199.41479674,0.00013972,2]
[339709926,1727886659965,-300.58520326,0.00013972,2]
[339709927,1727886659975,-500.0,0.00013972,2]
[339709928,1727886659986,-500.0,0.00013972,2]
[339709929,1727886659995,-500.0,0.00013972,2]
[339709930,1727886660004,-500.0,0.00013972,2]
[339709931,1727886660015,-196.57391791,0.00013972,2]
[339709932,1727886660027,-476.96608209,0.00013972,2]
[339709933,1727886660037,-500.0,0.00013972,2]
[339709934,1727886660047,-342.51344523,0.00013972,2]
[339709935,1727886660058,-500.0,0.00013972,2]
[339709936,1727886660067,-500.0,0.00013972,2]
[339709937,1727886660077,-500.0,0.00013972,2]
[339709938,1727886660087,-500.0,0.00013972,2]
[339709939,1727886660096,-500.0,0.00013972,2]
[339709940,1727886660105,-442.21627308,0.00013972,2]
[339709941,1727886660116,-57.78372692,0.00013972,2]
[339709942,1727886660126,-500.0,0.00013972,2]
[339709943,1727886660135,-126.14734497,0.00013972,2]
[339709944,1727886660147,-355.66427784,0.00013972,2]
[339709945,1727886660160,-27.77837719,0.00013972,2]
[339709946,1727886660169,-500.0,0.00013972,2]
[339709947,1727886660179,-511.17391681,0.00013972,2]
[339709948,1727886660188,-1211.95,0.00013972,2]
[339709949,1727886660198,-874.86,0.00013972,2]
[339709950,1727886660207,-710.09,0.00013972,2]
[339709951,1727886660216,-728.57,0.00013972,2]
[339709952,1727886660226,-500.0,0.00013972,2]
[339709953,1727886660236,-616.12990119,0.00013972,2]
[339709954,1727886660365,-500.0,0.00013972,2]
[339709955,1727886660375,-500.0,0.00013972,2]
[339709956,1727886660385,-500.0,0.00013972,2]
[339709957,1727886660394,-5.4113378,0.00013972,2]
[339709958,1727886665664,520.21,0.00010959,2]
[339709960,1727886728423,178.465445,0.00012721,2]
[339709961,1727886728733,178.465445,0.00012743,2]
[339709962,1727886728984,178.465445,0.00012764,2]
[339709963,1727886729465,178.465445,0.00012785,2]
[339709964,1727886748496,1000.0,0.0001041,2]
[339709965,1727886750094,1000.0,0.0001178,2]
[339709966,1727886877297,-300.0,0.00012551,2]
[339709967,1727886877320,-300.0,0.00012551,2]
[339709968,1727886877344,-24400.0,0.00012552,2]
[339709969,1727887197878,-189.03421,0.0001132,2]
[339709970,1727887197901,-189.03421,0.00011916,2]
[339709971,1727887197925,-3000.0,0.00011968,2]
[339709972,1727887197946,-227.07944057,0.00012308,2]
[339709973,1727887197970,-167.710937,0.00012408,2]
[339709974,1727887197998,-2227.14120243,0.0001242,2]
[339709975,1727887230965,-595.43416167,0.0001242,2]
[339709976,1727887230991,-19.56583833,0.00012458,2]
[339709977,1727887472008,109751.6639025,0.0001,2]
[339709978,1727887530144,-250.0,0.00011991,2]
[339709979,1727887530166,-58.16906984,0.00012,2]
[339709980,1727887559134,-1930.17114,0.00011785,2]
[339709981,1727887641372,-3177.9488662,0.00011785,2]
[339709982,1727887641394,-151.38629372,0.000119,2]
[339709983,1727887641419,-1444.20633778,0.00012,2]
[339709984,1727887641447,-166.205872,0.00012044,2]
[339709985,1727887641469,-2877.4329184,0.00012078,2]
[339709986,1727887641493,-166.205872,0.00012096,2]
[339709987,1727887641518,-166.205872,0.00012148,2]
[339709988,1727887641543,-151.3862937,0.00012157,2]
[339709989,1727887641566,-166.205872,0.000122,2]
[339709990,1727887641588,-166.205872,0.00012253,2]
[339709991,1727887641611,-166.205872,0.00012305,2]
[339709992,1727887641635,-166.205872,0.00012357,2]
[339709993,1727887641659,-166.205872,0.0001241,2]
[339709994,1727887641681,-151.3862937,0.00012414,2]
[339709995,1727887641711,-300.0,0.00012461,2]
[339709996,1727887641734,-300.0,0.00012461,2]
[339709997,1727887641758,-166.205872,0.00012462,2]
[339709998,1727887641780,-189.03421,0.00012512,2]
[339709999,1727887641804,-166.205872,0.00012514,2]
[339710000,1727887641828,-166.205872,0.00012567,2]
[339710001,1727887641852,-166.205872,0.00012619,2]
[339710002,1727887641877,-166.205872,0.00012671,2]
[339710003,1727887641901,-193.26981215,0.00012735,2]
[339710004,1727887641925,-1000.0,0.0001315,2]
[339710005,1727887641954,-3217.89044558,0.00013588,2]
[339710006,1727887641977,-783.67124142,0.00013598,2]
[339710007,1727887642000,-500.0,0.00013673,2]
[339710008,1727887642024,-314.4195764,0.00013673,2]
[339710009,1727887642047,-500.0,0.00013673,2]
[339710010,1727887642075,-500.0,0.00013673,2]
[339710011,1727887642101,-549.80656059,0.00013673,2]
[339710012,1727887642123,-500.0,0.00013673,2]
[339710013,1727887642149,-500.0,0.00013673,2]
[339710014,1727887642173,-420.0,0.00013673,2]
[339710015,1727887642196,-744.88826411,0.00013688,2]
[339710016,1727887642218,-6594.73599487,0.00013688,2]
[339710017,1727887643109,-458.18410754,0.00013688,2]
[339710018,1727887643165,-9943.25435232,0.00013688,2]
[339710019,1727887746131,-600.0,0.0001041,2]
[339710020,1727887746155,-151.1,0.00010959,2]
[339710021,1727887746180,-755.5,0.00010959,2]
[339710022,1727887746202,-600.0,0.0001178,2]
[339710023,1727887746224,-190.782346,0.00012215,2]
[339710030,1727887814331,405.08,0.00010959,2]
[339710031,1727887825144,337.56,0.00010959,2]
[339710079,1727887831870,-600.0,0.0001315,2]
[339710081,1727887831882,-2815.6541399,0.00013578,2]
[339710083,1727887831893,-500.0,0.00013673,2]
[339710085,1727887831904,-500.0,0.00013673,2]
[339710087,1727887831914,-17.27469188,0.00013673,2]
[339710090,1727887831927,-482.72530812,0.00013673,2]
[339710092,1727887831938,-300.0,0.00013677,2]
[339710095,1727887831952,-300.0,0.00013677,2]
[339710097,1727887831961,-496.59217607,0.00013678,2]
[339710099,1727887831971,-3284.11934379,0.00013678,2]
[339710101,1727887831985,-2965.92597572,0.00013678,2]
[339710135,1727887835764,281.3,0.00010959,2]
[339710143,1727887837828,-500.0,0.00013673,2]
[339710144,1727887837842,-3361.08745975,0.00013678,2]
[339710145,1727887837858,-248356.36007574,0.00013678,2]
[339710146,1727887837872,-24268.6202775,0.00013678,2]
[339710147,1727887837887,-24268.6202775,0.00013688,2]
[339710148,1727887837900,-500.0,0.00013698,2]
[339710149,1727887837914,-482.89297263,0.00013698,2]
[339710150,1727887837927,-510.12003069,0.00013698,2]
[339710151,1727887837940,-500.0,0.00013698,2]
[339710152,1727887837953,-500.0,0.00013698,2]
[339710153,1727887837967,-500.0,0.00013698,2]
[339710155,1727887837981,-500.0,0.00013698,2]
[339710157,1727887837994,-224.56102939,0.00013698,2]
[339710158,1727887838007,-500.0,0.00013698,2]
[339710159,1727887838019,-500.0,0.00013698,2]
[339710160,1727887838034,-500.0,0.00013698,2]
[339710161,1727887838047,-500.0,0.00013698,2]
[339710163,1727887838060,-500.0,0.00013698,2]
[339710165,1727887838073,-500.0,0.00013698,2]
[339710168,1727887838089,-500.0,0.00013698,2]
[339710169,1727887838103,-500.0,0.00013698,2]
[339710171,1727887838117,-500.0,0.00013698,2]
[339710172,1727887838132,-500.0,0.00013698,2]
[339710173,1727887838145,-500.0,0.00013698,2]
[339710174,1727887838159,-500.0,0.00013698,2]
[339710175,1727887838172,-609.79596459,0.00013698,2]
[339710176,1727887838186,-317.17756255,0.00013698,2]
[339710177,1727887838201,-283.36074223,0.00013698,2]
[339710178,1727887838215,-196.49326061,0.00013698,2]
[339710179,1727887838228,-500.0,0.00013698,2]
[339710180,1727887838241,-500.0,0.00013698,2]
[339710181,1727887838254,-500.0,0.00013698,2]
[339710182,1727887838268,-250.82065595,0.00013698,2]
[339710183,1727887838281,-500.0,0.00013698,2]